bitfinex/quotes_ETHUSD_20251119
["timestamp","ask_amount","ask_price","bid_price","bid_amount"]
[1763554892915,0.90401119,3091.8,3090.7,0.4511]
[1763554893116,0.872504,3091.8,3090.7,0.4511]
[1763554893523,0.407504,3091.8,3090.7,0.4511]
[1763554894048,0.002,3091.8,3090.7,0.4511]
[1763554894231,0.002,3091.8,3091.7,0.4948]
[1763554894937,0.002,3091.8,3091.7,0.9459]
[1763554895947,0.002,3091.8,3091.7,0.4948]
[1763554896154,0.002,3091.8,3091.7,0.9459]
[1763554897449,0.002,3091.8,3091.7,0.4948]
[1763554897658,0.002,3091.8,3091.7,0.9732]
[1763554898024,0.002,3091.8,3091.7,0.4948]
[1763554898427,0.002,3091.8,3091.3,0.4784]
[1763554899733,0.03350719,3091.8,3091.3,0.4784]
[1763554900133,0.002,3091.8,3091.7,0.467]
[1763554900666,0.002,3091.8,3091.7,0.9454]
[1763554901425,0.002,3091.8,3091.7,0.467]
[1763554901923,0.0012,3091.8,3091.7,0.467]
[1763554902125,0.0012,3091.8,3091.7,0.9454]
[1763554903461,0.0012,3091.8,3091.7,0.467]
[1763554903757,0.0012,3091.8,3091.7,0.9454]
[1763554904267,0.0012,3091.8,3091.7,0.467]
[1763554905662,0.0012,3091.8,3090.6,0.4784]
[1763554905663,0.405504,3091.7,3090.6,0.4784]
[1763554905836,0.76470719,3091.8,3090.6,0.4784]
[1763554905837,0.405504,3091.5,3090.6,0.4784]
[1763554906237,0.405504,3091.7,3090.6,0.4784]
[1763554906445,0.405504,3091.5,3090.6,0.4784]
[1763554906740,0.1868,3091.8,3090.6,0.4784]
[1763554906741,0.21830719,3091.8,3090.6,0.4784]
[1763554906939,0.18342742,3091.8,3090.6,0.4784]
[1763554907280,0.0012,3091.8,3090.6,0.4784]
[1763554907757,0.405504,3091.6,3090.6,0.4784]
[1763554907938,0.03150719,3091.5,3090.6,0.4784]
[1763554908755,0.458,3091.7,3090.6,0.4784]
[1763554909153,0.03150719,3091.6,3090.6,0.4784]
[1763554909937,0.458,3091.7,3090.6,0.4784]
[1763554910632,0.406704,3091.8,3090.6,0.4784]
[1763554911535,0.0012,3091.8,3090.6,0.4784]
[1763554912367,0.1878,3091.8,3090.6,0.4784]
[1763554913566,0.03150719,3091.7,3090.6,0.4784]
[1763554913783,0.6458,3091.8,3090.6,0.4784]
[1763554914482,0.1878,3091.8,3090.6,0.4784]
[1763554916075,0.03150719,3091.7,3090.6,0.4784]
[1763554916255,0.1878,3091.8,3090.6,0.4784]
[1763554918176,0.0012,3091.8,3090.6,0.4784]
[1763554919474,0.0012,3091.8,3091.7,0.467]
[1763554920342,0.0923,3091.8,3091.4,0.4784]
[1763554920542,0.03150719,3091.7,3091.4,0.4784]
[1763554920877,0.0012,3091.8,3091.1,0.4784]
[1763554921052,0.03270719,3091.8,3091.1,0.4784]
[1763554922259,0.0012,3091.8,3091.1,0.4784]
[1763554924146,0.0012,3091.8,3091.7,0.467]
[1763554924366,0.0012,3091.8,3091.7,0.9454]
[1763554924697,0.002,3092.2,3091.8,0.467]
[1763554925009,0.002,3092.2,3092.1,0.6544]
[1763554925388,0.002,3092.2,3092.1,1.1328]
[1763554926981,0.0012,3092.2,3092.1,1.1328]
[1763554928147,0.0012,3092.5,3092.1,1.1328]
[1763554928296,0.002,3092.9,3092.4,0.4669]
[1763554928632,0.002,3092.9,3092.2,0.865404]
[1763554928633,0.002,3092.9,3092.8,0.4669]
[1763554928781,0.002,3093.2,3092.8,0.9268]
[1763554928964,0.03150719,3094.5,3093.1,0.6608]
[1763554929270,0.1866,3095.0,3093.2,0.405504]
[1763554929473,0.03150719,3094.9,3094.4,0.4669]
[1763554929672,0.03150719,3095.1,3094.5,0.1939]
[1763554930097,0.002,3095.3,3094.5,0.1939]
[1763554930489,0.03350719,3095.3,3094.5,0.1939]
[1763554930693,0.03350719,3095.3,3093.5,0.1939]
[1763554930694,0.6542,3094.6,3093.5,0.1939]
[1763554930889,0.03230719,3094.5,3093.5,0.6538]
[1763554931071,0.52250719,3094.5,3093.5,0.6538]
[1763554931595,0.52250719,3094.5,3093.6,0.4599]
[1763554932470,0.491,3094.5,3093.6,0.4599]
[1763554933082,0.03150719,3094.4,3093.6,0.4599]
[1763554933408,0.4922,3095.3,3094.4,0.6608]
[1763554933706,0.002,3095.3,3094.5,0.4669]
[1763554933903,0.002,3095.3,3094.5,0.9268]
[1763554934405,0.002,3095.3,3095.2,0.4669]
[1763554934706,0.002,3095.3,3095.2,0.9268]
[1763554938971,0.0612,3095.3,3094.6,0.4599]
[1763554939611,0.51740719,3095.2,3094.4,0.1939]
[1763554939897,0.51740719,3095.2,3093.6,0.4599]
[1763554939898,0.0634,3094.5,3093.6,0.4599]
[1763554940082,0.0634,3094.5,3093.1,0.1939]
[1763554940083,0.03150719,3094.4,3093.1,0.1939]
[1763554940280,0.03150719,3094.4,3093.3,0.4599]
[1763554940479,0.4902,3094.5,3093.4,0.4599]
[1763554940694,0.03150719,3094.4,3093.4,0.4599]
[1763554941131,0.4902,3094.4,3093.4,0.4599]
[1763554942838,0.4902,3094.4,3092.0,6.22134587]
[1763554942839,0.2511,3093.6,3092.5,0.4599]
[1763554942985,0.1919,3093.6,3092.5,0.4599]
[1763554943190,0.6821,3093.6,3092.5,0.4599]
[1763554943411,0.1932,3093.8,3092.5,0.4599]
[1763554945023,0.4793,3094.3,3092.6,0.03233525]
[1763554945209,0.4793,3094.3,3092.5,0.4599]
[1763554946316,0.4793,3094.3,3092.6,0.405504]
[1763554946719,0.4793,3094.3,3092.7,0.4798]
[1763554947738,0.4793,3094.8,3092.8,0.43783716]
[1763554948037,0.4813,3095.3,3094.2,0.6677]
[1763554948401,0.4813,3095.3,3094.3,0.4798]
[1763554948632,0.002,3095.3,3094.3,0.4798]
[1763554948830,0.002,3095.3,3094.2,0.1888]
[1763554949034,0.4813,3095.3,3094.2,0.1888]
[1763554949230,0.4813,3095.3,3094.2,0.6686]
[1763554949408,0.002,3095.3,3094.2,0.6686]
[1763554949612,0.002,3094.3,3094.2,0.1888]
[1763554949811,0.002,3094.3,3094.2,0.6677]
[1763554950210,0.002,3094.3,3094.2,1.1475]
[1763554950676,0.002,3094.3,3092.9,0.90699264]
[1763554950677,0.002,3094.3,3093.7,0.4798]
[1763554951803,0.0012,3094.3,3093.7,0.4798]
[1763554953504,0.0012,3094.3,3093.3,0.4798]
[1763554955627,0.4793,3094.2,3093.3,0.4798]
[1763554955874,0.0789,3093.4,3092.9,0.4798]
[1763554956034,0.4793,3094.2,3092.9,0.4798]
[1763554956357,0.4793,3094.1,3092.8,0.4798]
[1763554956742,0.4793,3094.1,3093.1,0.4798]
[1763554956941,0.4793,3094.1,3092.7,0.90699264]
[1763554956942,0.4793,3094.1,3092.7,1.38679264]
[1763554957136,0.4793,3094.1,3092.8,0.4798]
[1763554957339,0.0012,3094.3,3092.9,0.35613211]
[1763554957672,0.4805,3094.3,3092.8,0.4798]
[1763554957828,0.03150719,3094.2,3092.8,0.4798]
[1763554958199,0.03150719,3094.2,3092.9,0.19115719]
[1763554958458,0.4738,3094.1,3092.9,0.19115719]
[1763554958656,0.4738,3094.1,3093.0,0.4538]
[1763554959025,0.4738,3094.1,3093.1,0.1918]
[1763554959454,0.4738,3094.1,3093.2,0.4538]
[1763554960049,0.0012,3094.3,3093.2,0.4538]
[1763554960368,0.0012,3094.3,3093.2,0.48612897]
[1763554960735,0.0012,3094.3,3093.2,0.4538]
[1763554960942,0.475,3094.3,3093.2,0.4538]
[1763554961471,0.0012,3094.3,3093.2,0.48612897]
[1763554961635,0.0012,3094.3,3094.2,0.4661]
[1763554962053,0.0012,3094.3,3093.7,0.4538]
[1763554962685,0.0012,3094.3,3094.2,0.6579]
[1763554963587,0.0012,3094.3,3093.5,0.90699264]
[1763554963588,0.0012,3094.3,3093.5,1.36079264]
[1763554963784,0.0012,3094.3,3093.6,0.52207926]
[1763554963982,0.0012,3094.3,3093.3,0.90699264]
[1763554964175,0.03270719,3094.3,3093.4,0.4538]
[1763554964498,0.0012,3094.3,3093.4,0.4538]
[1763554965788,0.0012,3094.3,3094.2,0.6579]
[1763554966306,0.0012,3094.3,3094.2,1.1117]
[1763554969402,0.4833,3094.3,3093.6,0.4538]
[1763554969598,0.5505,3094.3,3093.6,0.4538]
[1763554969985,0.4833,3094.3,3093.6,0.4538]
[1763554976399,0.5505,3094.3,3093.4,0.4538]
[1763554976567,0.5505,3094.3,3093.4,0.91766]
[1763554976972,0.4825,3094.3,3093.5,0.4538]
[1763554978004,0.0672,3094.2,3093.3,3.861]
[1763554979307,0.0672,3094.2,3093.4,0.4538]
[1763554979603,0.0672,3094.2,3093.4,0.88528]
[1763554979977,0.0004,3094.3,3093.5,0.4538]
[1763554980379,0.4742,3094.3,3093.3,0.001]
[1763554980781,0.03150719,3094.2,3093.3,0.001]
[1763554981008,0.4742,3094.3,3093.3,0.001]
[1763554981212,0.4738,3094.2,3093.3,0.001]
[1763554981509,0.4738,3094.2,3093.3,0.4548]
[1763554982111,0.50530719,3094.2,3093.3,0.001]
[1763554982294,0.4738,3094.2,3093.3,0.001]
[1763554982978,0.4738,3094.2,3093.3,0.4548]
[1763554983186,0.0004,3094.3,3094.1,0.4661]
[1763554983484,0.0004,3094.3,3094.2,0.4661]
[1763554983898,0.0758,3094.3,3093.6,0.3238]
[1763554984134,0.0758,3094.3,3093.6,0.4538]
[1763554984286,0.0004,3094.3,3093.6,0.4538]
[1763554986201,0.0004,3094.3,3094.2,0.6579]
[1763554986727,0.0004,3094.3,3094.2,0.4661]
[1763554987529,0.0004,3094.3,3093.9,0.4538]
[1763554987829,0.4592,3094.0,3093.5,0.001]
[1763554988352,0.4592,3094.0,3093.6,0.4828]
[1763554988837,0.0004,3094.3,3093.6,0.4828]
[1763554990350,0.4948,3094.2,3093.5,0.001]
[1763554992133,0.0004,3094.3,3093.5,0.4838]
[1763554992715,0.4952,3094.3,3093.5,0.4838]
[1763554993250,0.03150719,3094.2,3093.5,0.001]
[1763554993417,0.4952,3094.3,3093.5,0.001]
[1763554993618,0.4948,3094.2,3093.5,0.001]
[1763554994222,0.0004,3094.3,3093.5,0.4838]
[1763554994420,0.4952,3094.3,3093.5,0.4838]
[1763554995327,0.4952,3094.3,3093.5,0.001]
[1763554995524,0.03150719,3094.2,3093.5,0.001]
[1763554996045,0.52630719,3094.2,3093.5,0.001]
[1763554996261,0.0004,3094.3,3093.6,0.4828]
[1763554997383,0.0004,3094.3,3093.5,0.001]
[1763554997384,0.4592,3093.7,3093.5,0.001]
[1763554997675,0.0899,3094.2,3093.5,0.001]
[1763554999865,0.6419,3093.6,3093.5,0.001]
[1763555000259,1.140904,3093.6,3093.5,0.001]
[1763555000457,1.34569366,3093.6,3093.5,0.001]
[1763555000756,2.04355912,3093.6,3093.5,0.001]
[1763555001973,2.04275912,3093.6,3093.5,0.001]
[1763555002337,1.34489366,3093.6,3093.5,0.001]
[1763555004044,0.93938966,3093.6,3093.5,0.001]
[1763555004364,0.7346,3093.6,3093.5,0.001]
[1763555004868,0.69667815,3093.9,3093.5,0.001]
[1763555004869,0.1842,3093.9,3093.5,0.001]
[1763555005062,0.4692,3093.6,3093.5,0.001]
[1763555005578,0.1842,3094.1,3093.5,0.4547]
[1763555006354,0.6418,3094.1,3093.5,0.001]
[1763555008976,0.03150719,3094.0,3093.5,0.001]
[1763555009476,0.48910719,3094.0,3093.5,0.001]
[1763555010077,0.1842,3094.1,3093.5,0.001]
[1763555010281,0.0004,3094.3,3093.5,0.49]
[1763555010780,0.0004,3094.3,3093.5,0.001]
[1763555010781,0.4576,3094.2,3093.5,0.001]
[1763555012284,0.0921,3093.6,3093.5,0.001]
[1763555014153,0.6409,3094.1,3093.5,0.001]
[1763555015755,0.48910719,3094.0,3093.5,0.001]
[1763555017360,0.4576,3094.0,3093.5,0.001]
[1763555017564,0.03150719,3093.9,3093.5,0.001]
[1763555017981,0.49110719,3093.9,3093.5,0.001]
[1763555018373,0.4596,3093.9,3093.5,0.001]
[1763555018696,0.03150719,3093.8,3093.5,0.001]
[1763555019586,0.091,3093.6,3093.5,0.001]
[1763555019771,0.12250719,3093.6,3093.5,0.001]
[1763555020168,0.1833,3094.1,3093.5,0.4922]
[1763555020373,0.6429,3094.1,3093.5,0.4922]
[1763555020895,0.4596,3094.0,3093.5,0.4922]
[1763555023200,0.091,3093.6,3093.5,0.001]
[1763555023703,0.5469,3093.6,3093.5,0.001]
[1763555024207,0.952404,3093.6,3093.5,0.001]
[1763555024808,1.11725101,3093.6,3093.5,0.001]
[1763555024971,0.25584701,3093.6,3093.5,0.001]
[1763555025176,0.4989,3093.6,3093.5,0.001]
[1763555025989,0.405504,3094.0,3093.5,0.4922]
[1763555026307,0.865104,3094.0,3093.5,0.4922]
[1763555026484,0.4989,3093.6,3093.5,0.001]
[1763555026684,0.4981,3093.6,3093.5,0.001]
[1763555026906,0.0521,3093.9,3093.5,0.001]
[1763555027094,0.08360719,3093.9,3093.5,0.001]
[1763555027410,0.1853,3094.1,3093.5,0.4943]
[1763555027581,0.1853,3094.1,3093.8,0.4912]
[1763555028079,0.0894,3093.9,3093.5,0.001]
[1763555028279,0.0046,3093.6,3093.5,0.001]
[1763555030812,0.4596,3093.9,3093.5,0.001]
[1763555031910,0.03150719,3093.8,3093.5,0.001]
[1763555032096,0.4596,3093.9,3093.5,0.001]
[1763555032916,0.6449,3094.1,3093.5,0.001]
[1763555035915,0.03150719,3094.0,3093.5,0.001]
[1763555036291,0.49110719,3094.0,3093.5,0.001]
[1763555036893,0.4596,3094.0,3093.5,0.001]
[1763555037916,0.1853,3094.1,3093.5,0.4943]
[1763555038117,0.30212425,3094.0,3093.5,0.4943]
[1763555039016,0.90699264,3093.9,3093.5,0.4943]
[1763555041448,0.90699264,3093.9,3093.5,0.001]
[1763555041635,1.47724506,3093.9,3093.5,0.001]
[1763555041839,0.03150719,3093.8,3093.5,0.001]
[1763555042333,0.90899264,3093.9,3093.5,0.001]
[1763555042508,0.90899264,3093.9,3093.6,0.3242]
[1763555042711,0.90899264,3093.9,3093.5,0.4943]
[1763555043111,0.002,3093.9,3093.8,0.4912]
[1763555043548,0.002,3093.9,3093.8,0.9845]
[1763555043912,0.002,3093.9,3093.8,1.54397316]
[1763555044323,0.002,3093.9,3093.8,0.9845]
[1763555047109,0.002,3093.9,3093.5,0.001]
[1763555047314,0.002,3093.9,3093.8,0.4912]
[1763555047512,0.002,3093.9,3093.8,0.9845]
[1763555048337,0.1,3093.9,3093.5,0.001]
[1763555048543,0.1,3093.9,3093.5,0.4768]
[1763555048716,0.03150719,3093.8,3093.5,0.001]
[1763555049670,0.002,3093.9,3093.5,0.001]
[1763555050057,0.002,3093.9,3093.5,0.4768]
[1763555050245,0.002,3093.9,3093.8,0.4833]
[1763555051158,0.4692,3093.9,3093.5,0.001]
[1763555051450,0.4692,3093.9,3093.5,0.4768]
[1763555051645,0.002,3093.9,3093.8,0.4833]
[1763555051820,0.0012,3093.9,3093.5,0.4768]
[1763555052130,0.0012,3093.9,3093.5,0.001]
[1763555053017,0.0012,3093.9,3093.5,0.4768]
[1763555055247,0.0012,3093.9,3093.8,0.4833]
[1763555056645,0.0012,3093.9,3093.8,0.9591]
[1763555057761,0.0012,3093.9,3093.8,0.4833]
[1763555057967,0.0605,3093.9,3093.5,0.4768]
[1763555058265,0.2498,3093.9,3093.5,0.001]
[1763555060049,0.0012,3093.9,3093.8,0.4833]
[1763555060242,0.0012,3093.9,3093.8,0.9591]
[1763555060747,0.002,3094.1,3093.9,0.405504]
[1763555060959,0.002,3094.1,3094.0,0.888804]
[1763555061458,0.002,3094.1,3094.0,1.364604]
[1763555063989,0.002,3094.1,3094.0,0.9591]
[1763555065781,0.002,3094.1,3093.6,0.03232479]
[1763555065970,0.002,3094.1,3093.6,0.4912]
[1763555066179,0.002,3094.1,3094.0,0.4529]
[1763555066381,0.002,3094.1,3094.0,0.48522062]
[1763555066583,0.002,3094.1,3094.0,0.97642062]
[1763555066761,0.002,3094.1,3094.0,0.9441]
[1763555068871,0.002,3094.1,3093.5,0.6012]
[1763555069084,0.002,3094.1,3094.0,0.4529]
[1763555069594,0.002,3094.1,3094.0,0.9441]
[1763555069759,0.002,3094.1,3094.0,0.4529]
[1763555069964,0.0964,3094.1,3093.5,0.001]
[1763555070294,0.0964,3094.1,3093.5,0.4922]
[1763555070863,0.002,3094.1,3094.0,0.4529]
[1763555074684,0.002,3094.1,3094.0,0.9441]
[1763555075283,0.002,3094.1,3094.0,0.4529]
[1763555076696,0.0012,3094.1,3094.0,0.4529]
[1763555076884,0.0012,3094.1,3094.0,0.9441]
[1763555080207,0.0012,3094.1,3094.0,0.97642062]
[1763555080422,0.0012,3094.1,3094.0,1.53483107]
[1763555081800,0.0012,3094.1,3094.0,5.36251045]
[1763555082315,0.0012,3094.1,3094.0,1.50251045]
[1763555082700,0.0012,3094.1,3094.0,1.61151045]
[1763555083090,0.0012,3094.1,3094.0,1.0531]
[1763555083507,0.0012,3094.1,3094.0,0.9441]
[1763555083806,0.0012,3094.1,3094.0,1.0531]
[1763555087508,0.0012,3094.1,3094.0,1.458604]
[1763555087793,0.0012,3094.1,3094.0,1.49092462]
[1763555088118,0.0012,3094.1,3094.0,2.36421902]
[1763555089014,0.0012,3094.1,3094.0,2.25521902]
[1763555089198,0.0012,3094.1,3094.0,2.36421902]
[1763555089810,0.0012,3094.1,3094.0,2.3318984]
[1763555091501,0.0012,3094.1,3094.0,2.36421902]
[1763555092113,0.0012,3094.1,3094.0,1.49092462]
[1763555092827,0.0012,3094.1,3094.0,1.62042537]
[1763555094610,0.0012,3094.1,3094.0,1.62142537]
[1763555097846,0.0012,3094.1,3094.0,1.94562537]
[1763555101638,0.0004,3094.1,3094.0,1.94562537]
[1763555101936,0.0004,3094.1,3094.0,2.14018791]
[1763555102623,0.0004,3094.1,3094.0,6.90718055]
[1763555102829,0.0004,3094.1,3094.0,11.58337782]
[1763555103359,0.0004,3094.1,3094.0,6.36035593]
[1763555103659,0.0004,3094.1,3094.0,6.90718097]
[1763555103860,0.0004,3094.1,3094.0,6.87486035]
[1763555105555,0.0004,3094.1,3094.0,6.76586035]
[1763555105758,0.0004,3094.1,3094.0,6.87486035]
[1763555106280,0.0004,3094.1,3094.0,6.87476035]
[1763555109093,0.0004,3094.1,3094.0,6.76576035]
[1763555109253,0.0004,3094.1,3094.0,6.87476035]
[1763555109968,0.0004,3094.1,3094.0,5.93076035]
[1763555110167,0.0004,3094.1,3094.0,6.74835918]
[1763555110783,0.0004,3094.1,3094.0,5.38146654]
[1763555110980,0.0004,3094.1,3094.0,6.28845918]
[1763555111963,0.0004,3094.1,3094.0,6.74835918]
[1763555112170,0.0004,3094.1,3094.0,6.28845918]
[1763555113271,0.0576,3094.1,3094.0,4.1852]
[1763555113471,0.0004,3094.1,3094.0,4.1852]
[1763555114580,0.0004,3094.1,3094.0,3.861]
[1763555115907,0.0004,3094.1,3094.0,3.97]
[1763555117783,0.50761775,3094.1,3094.0,4.85743227]
[1763555119360,0.50761775,3094.1,3094.0,4.88975289]
[1763555119559,0.50761775,3094.1,3094.0,6.25664553]
[1763555119876,0.50761775,3094.1,3094.0,6.66214953]
[1763555120075,0.50761775,3094.1,3094.0,6.62982891]
[1763555123185,0.97211775,3094.1,3094.0,3.861]
[1763555123354,0.97211775,3094.1,3094.0,4.76799264]
[1763555126608,0.97131775,3094.1,3094.0,0.90799264]
[1763555128105,0.4645,3094.1,3094.0,0.90799264]
[1763555128409,0.0004,3094.3,3094.0,0.98395264]
[1763555128604,0.0004,3094.3,3094.1,0.03231957]
[1763555128979,0.4607,3094.2,3094.1,0.03231957]
[1763555129303,0.4607,3094.2,3094.0,4.84395264]
[1763555129508,0.4571,3094.1,3094.0,4.84395264]
[1763555129874,0.556,3094.1,3094.0,3.97]
[1763555130075,0.556,3094.1,3094.0,3.861]
[1763555130275,0.558,3094.1,3094.0,3.861]
[1763555131326,0.558,3094.1,3094.0,0.001]
[1763555136210,0.4591,3094.1,3094.0,0.001]
[1763555136408,0.5545,3094.1,3094.0,0.001]
[1763555144473,6.17001053,3094.1,3094.0,0.001]
[1763555144756,6.17001053,3094.1,3093.6,0.001]
[1763555144757,4.70851789,3093.7,3093.6,0.001]
[1763555145054,5.27311789,3093.7,3093.6,0.001]
[1763555146582,5.27311789,3093.7,3093.5,0.001]
[1763555146788,0.4542,3093.6,3093.5,0.001]
[1763555147074,0.5646,3093.6,3093.5,0.001]
[1763555147240,1.11010179,3093.6,3093.5,0.001]
[1763555148672,0.1104,3093.6,3093.5,0.001]
[1763555149775,0.1819,3093.8,3093.5,0.4636]
[1763555149967,0.002,3094.1,3093.5,0.4636]
[1763555150170,0.002,3094.1,3093.5,0.9354]
[1763555150673,0.002,3094.1,3093.5,1.3896]
[1763555151436,0.0012,3094.1,3093.5,1.3896]
[1763555152475,0.0012,3094.1,3093.6,0.4718]
[1763555154175,0.0012,3094.1,3093.7,0.03232375]
[1763555154585,0.0012,3094.1,3093.7,0.50412375]
[1763555155180,0.0012,3094.1,3093.7,0.4718]
[1763555155892,0.0012,3094.1,3093.6,0.4542]
[1763555156054,0.0012,3094.1,3093.6,0.926]
[1763555157403,0.0012,3094.1,3093.7,0.4718]
[1763555157556,0.0012,3094.1,3093.7,0.50412375]
[1763555157958,0.0012,3094.1,3094.0,0.4626]
[1763555158212,0.0012,3094.1,3093.8,0.5632]
[1763555158374,0.0012,3094.1,3094.0,0.4626]
[1763555159356,0.0012,3094.1,3094.0,0.9188]
[1763555162618,0.0012,3094.1,3094.0,1.3906]
[1763555163915,0.0012,3094.1,3094.0,0.4562]
[1763555167883,0.5623,3094.1,3093.5,0.001]
[1763555168088,0.0012,3094.1,3094.0,0.4813]
[1763555168596,0.0012,3094.1,3093.7,0.4725]
[1763555168894,0.0012,3094.1,3093.7,0.9265]
[1763555169617,0.0012,3094.1,3093.8,0.4725]
[1763555169997,0.2972,3093.9,3093.7,0.454]
[1763555170195,0.0012,3094.1,3093.7,0.4725]
[1763555170397,0.0012,3094.1,3094.0,0.4813]
[1763555170598,0.0012,3094.1,3094.0,1.50062462]
[1763555170903,0.0012,3094.1,3094.0,2.53712766]
[1763555171107,0.0004,3094.3,3094.1,0.405504]
[1763555171305,0.0004,3094.3,3094.2,11.99311868]
[1763555171509,0.0004,3094.3,3094.2,11.96080015]
[1763555172389,0.002,3094.5,3094.3,1.31249664]
[1763555172621,0.002,3094.7,3094.5,0.405504]
[1763555172914,0.002,3094.7,3094.5,6.72626681]
[1763555173102,0.002,3094.7,3094.5,7.9671551]
[1763555174104,0.002,3094.7,3094.5,8.26095477]
[1763555176641,0.0012,3094.6,3094.5,7.9671551]
[1763555177541,0.0012,3094.6,3094.5,7.6429551]
[1763555178240,0.0012,3094.6,3094.5,7.77240933]
[1763555179125,0.002,3094.7,3094.6,1.31249664]
[1763555179324,0.002,3094.7,3094.6,3.64615557]
[1763555179632,0.002,3094.7,3094.6,3.14065157]
[1763555179843,0.002,3094.7,3094.6,1.86079264]
[1763555180025,0.002,3094.7,3094.6,0.4813]
[1763555180227,0.002,3094.7,3094.6,0.5903]
[1763555180458,0.002,3094.7,3094.6,1.0628]
[1763555180819,0.002,3094.7,3094.6,1.468304]
[1763555181015,0.002,3094.7,3094.6,1.59778799]
[1763555181443,0.002,3094.7,3094.6,1.19228399]
[1763555181652,0.002,3094.7,3094.6,1.59778799]
[1763555185271,0.002,3094.7,3094.6,1.48878799]
[1763555185479,0.002,3094.7,3094.6,1.59778799]
[1763555185888,0.002,3094.7,3094.6,1.12528799]
[1763555186180,0.002,3094.7,3094.6,1.01628799]
[1763555186382,0.0619,3094.7,3094.6,0.53498799]
[1763555186582,0.0619,3094.7,3094.6,0.64398799]
[1763555186992,0.0619,3094.7,3094.6,5.41098063]
[1763555187523,0.002,3094.7,3094.6,5.41098063]
[1763555187841,0.002,3094.7,3094.6,6.42777869]
[1763555188053,0.002,3094.7,3094.6,5.95207869]
[1763555188475,0.002,3094.7,3094.6,6.42777869]
[1763555188994,0.2491,3094.7,3094.6,5.30198063]
[1763555189199,0.549,3094.7,3094.6,4.50398799]
[1763555189889,0.002,3094.7,3094.6,4.97968799]
[1763555190044,0.002,3094.7,3094.6,5.44908799]
[1763555190243,0.002,3094.7,3094.6,6.02641679]
[1763555190938,0.2491,3094.7,3094.6,5.08131679]
[1763555191171,0.2491,3094.7,3094.6,4.50398799]
[1763555191376,0.002,3094.7,3094.6,4.50398799]
[1763555191541,0.002,3094.7,3094.6,4.97968799]
[1763555191746,0.2496,3094.7,3094.6,4.50398799]
[1763555191956,0.50914082,3094.7,3094.6,4.97968799]
[1763555192943,0.50914082,3094.7,3094.6,6.38464943]
[1763555193145,0.50914082,3094.7,3094.6,7.21056378]
[1763555193362,0.50914082,3094.7,3094.6,7.17824943]
[1763555194180,0.002,3094.7,3094.6,7.17824943]
[1763555198194,0.002,3094.7,3094.6,7.06924943]
[1763555198360,0.002,3094.7,3094.6,7.17824943]
[1763555200888,0.002,3094.7,3094.6,11.78072252]
[1763555201457,0.0012,3094.7,3094.6,11.78072252]
[1763555203571,0.002,3094.8,3094.7,5.49549664]
[1763555203772,0.002,3094.8,3094.7,7.75559856]
[1763555204382,0.002,3094.8,3094.7,7.88505824]
[1763555204696,0.2569,3094.8,3094.7,6.63775424]
[1763555204879,0.0678,3094.8,3094.7,5.73395632]
[1763555205283,0.0678,3094.8,3094.7,5.32845232]
[1763555205497,0.0678,3094.8,3094.7,5.73395632]
[1763555205699,0.002,3094.8,3094.7,5.73395632]
[1763555205996,0.002,3094.8,3094.7,7.29089614]
[1763555206202,0.0678,3094.8,3094.7,6.81749614]
[1763555206374,0.0678,3094.8,3094.7,6.41199214]
[1763555206375,0.5472,3094.8,3094.7,6.41199214]
[1763555206772,0.5472,3094.8,3094.7,1.23119264]
[1763555206962,0.5472,3094.8,3094.7,0.90699264]
[1763555207589,0.5472,3094.8,3094.7,1.23119264]
[1763555207786,0.0678,3094.8,3094.7,1.23119264]
[1763555208162,0.5472,3094.8,3094.7,1.23119264]
[1763555208694,0.0678,3094.8,3094.7,1.63669664]
[1763555208872,0.0678,3094.8,3094.7,1.8113663]
[1763555209895,0.5472,3094.8,3094.7,1.63669664]
[1763555210985,1.05433425,3094.8,3094.7,1.63669664]
[1763555211686,1.05433425,3094.8,3094.6,0.3242]
[1763555211883,0.4835,3094.7,3094.6,0.3242]
[1763555212204,0.5493,3094.7,3094.6,0.3242]
[1763555212570,0.5493,3094.7,3094.6,0.4332]
[1763555212972,0.5493,3094.7,3094.6,0.109]
[1763555213173,0.50913425,3094.8,3094.7,0.405504]
[1763555213575,0.57903425,3094.8,3094.6,0.109]
[1763555214171,0.0699,3094.7,3094.6,0.109]
[1763555217403,0.5452,3094.7,3094.5,0.91563825]
[1763555217577,0.4753,3094.7,3094.6,0.838704]
[1763555217779,0.50913425,3094.8,3094.7,0.405504]
[1763555217979,0.99263425,3094.8,3094.7,0.405504]
[1763555218280,1.05843425,3094.8,3094.7,0.405504]
[1763555219088,1.00323425,3094.8,3094.7,0.405504]
[1763555219621,0.50913425,3094.8,3094.7,0.405504]
[1763555219791,0.50913425,3094.8,3094.7,1.3886173]
[1763555219994,0.50913425,3094.8,3094.7,2.13254615]
[1763555220431,0.50913425,3094.8,3094.7,1.62283285]
[1763555220907,0.50913425,3094.8,3094.7,0.878904]
[1763555221515,0.50913425,3094.8,3094.7,1.7128173]
[1763555221678,0.50913425,3094.8,3094.7,1.680504]
[1763555225226,0.50913425,3094.8,3094.7,1.203104]
[1763555226359,0.50833425,3094.8,3094.7,1.312104]
[1763555227172,0.50833425,3094.8,3094.7,3.48384559]
[1763555227339,0.50833425,3094.8,3094.7,7.34264559]
[1763555227670,0.18423425,3094.8,3094.7,7.34264559]
[1763555227829,0.002,3095.0,3094.7,3.48384559]